[Event "4NCL Div 2 2024-25"]
[Site "England"]
[Date "2025.01.25"]
[Round "3.1"]
[White "Pal, Rohan"]
[Black "Khoury, Theo"]
[Result "0-1"]
[Annotator "TA"]
[ECO "D53"]
[WhiteElo "1970"]
[BlackElo "2194"]
[PlyCount "56"]
[EventDate "2024.11.23"]
[EventType "team-tourn"]
[EventCountry "ENG"]
[SourceTitle "playchess.com"]
[Source "ChessBase"]
[SourceQuality "1"]
[TimeControl "40/6000+30:3000+30"]

{[%evp 11,56,11,17,20,33,33,39,2,10,23,9,0,29,24,43,16,20,-31,-20,-38,-45,-95,-95,-97,-62,-164,-160,-377,315,314,275,-522,-574,-585,-574,-834,-568,-613,-612,-1030,-1019,-1074,-596,-598,-597,-581,-571]} 1. c4 {[%emt 0:10:01]} e6 {[%emt 0:10:15]} 2. Nf3 {[%emt 0:00:46]} d5 {[%emt 0:00:09]} 3. d4 {[%emt 0:00:56]} Nf6 {[%emt 0:00:07]} 4. Nc3 {[%emt 0:00:02]} Be7 {[%emt 0:00:09]} 5. Bg5 {[%emt 0:00:08]} h6 {[%emt 0:00:09]} 6. Bh4 {[%emt 0:00:15]} dxc4 {[%emt 0:00:06]} 7. e3 {[%emt 0:00:32] D53: Queen's Gambit Declined: 4 Bg5 Be7: Early deviations.} c5 {[%emt 0:00:05]} 8. Bxc4 {[%emt 0:01:00]} cxd4 {[%emt 0:00:05]} 9. exd4 {[%emt 0:03:23] White is slightly better.} O-O {[%emt 0:00:08]} 10. O-O {[%emt 0:00:11]} Nc6 {[%emt 0:00:04]} 11. Re1 {[%emt 0:01:33] The main line 11.Re1 scores better than 11.a3.} a6 {[%emt 0:00:03]} 12. a3 {[%emt 0:07:23]} b5 {[%emt 0:00:16]} 13. Ba2 {[%emt 0:05:13]} (13. Bb3 $5) 13... Bb7 {[%emt 0:08:25]} 14. Qd2 {[%emt 0:08:47]} (14. Qd3 $11) 14... b4 $146 {[%emt 0:03:07]} (14... Qb6 15. d5 Rad8 16. Rad1 exd5 17. Bxf6 Bxf6 18. Nxd5 Rxd5 19. Bxd5 Rd8 20. Qf4 Nd4 21. Bxb7 Ne2+ 22. Rxe2 Rxd1+ 23. Ne1 Kf8 24. Qe4 {1-0 Szusterowski,P (1750)-Borowicz,P (2009) Polanica Zdroj op-B 45th 2009 (6)}) 15. axb4 {[%emt 0:23:36]} Nxb4 {[%emt 0:00:52]} 16. Bb3 {[%emt 0:04:57]} (16. Ne5 $15) 16... Bxf3 $17 {[%emt 0:31:44]} 17. gxf3 {[%emt 0:00:05]} Rb8 {[%emt 0:01:57] White must now prevent ...Nc6.} 18. Kh1 {[%emt 0:05:02]} ({Better is} 18. Bg3 $15) 18... Nc6 $19 {[%emt 0:05:05][%csl LRb3,LRd4] Excellent horsemanship.} 19. Rg1 $2 {[%emt 0:06:48]} (19. Bd1 $17 {was worth a try.}) 19... Kh8 $4 {[%emt 0:19:21][%mdl 8192] [#]} (19... Qxd4 20. Qxh6 $17) (19... Rxb3 $19 {and life is good for Black.} 20. Qxh6 Ne8 (20... Rxb2 21. Rxg7#) 21. Bxe7 Nxe7) 20. Rxg7 $1 $18 {[%emt 0:04:01]} Kxg7 {[%emt 0:00:20]} 21. Bxf6+ $4 {[%emt 0:01:14][%mdl 8192]} (21. Rg1+ $18 {was the only winning move.} Kh7 22. Qd3+ (22. Bxf6 Rg8 $16) 22... Ne4 (22... Kh8 23. Bxf6+ Bxf6 24. Bc2 Nxd4 25. Qh7#) 23. Bf6 (23. Qxe4+ f5 $15)) 21... Bxf6 $19 {[%emt 0:00:20] Black is clearly winning.} ({Weaker is} 21... Kxf6 22. Qxh6+ Kf5 23. Bc2#) 22. Rg1+ {[%emt 0:01:41]} Bg5 {[%emt 0:00:13]} 23. Ne4 {[%emt 0:01:25]} f6 {[%emt 0:05:22]} 24. Nc5 {[%emt 0:02:02]} Kh8 {[%emt 0:00:31]} 25. Qc2 {[%emt 0:02:34]} Nxd4 {[%emt 0:02:06]} 26. Qg6 {[%emt 0:00:46]} Qe8 {[%emt 0:00:13]} 27. Rxg5 {[%emt 0:00:35]} Qxg6 {[%emt 0:00:08]} ({Not} 27... fxg5 28. Qxh6+ Kg8 29. Nxe6 Nxe6 (29... Nxb3 30. Qg7#) 30. Bxe6+ Rf7 31. Qg6+ Kf8 32. Bxf7 $17) 28. Rxg6 {[%emt 0:00:03]} Nxb3 {[%emt 0:00:06] Weighted Error Value: White=0.84/Black=0.83  Loses game:     	White=1     	---        Missed win:     	White=1     	Black=1      Mistake:       	White=3     	---        Inaccurate:     	White=4     	Black=3      OK:         	White=4     	Black=6      Best:        	---       	Black=2      Brilliant:      	White=1     	---} 0-1

[Event "4NCL Div 2 2024-25"]
[Site "England"]
[Date "2025.01.25"]
[Round "3.2"]
[White "Hobson, Kenneth"]
[Black "Mason, Donald J"]
[Result "1-0"]
[Annotator "TA"]
[ECO "B32"]
[WhiteElo "2152"]
[BlackElo "2021"]
[PlyCount "63"]
[EventDate "2024.11.23"]
[EventType "team-tourn"]
[EventCountry "ENG"]
[SourceTitle "playchess.com"]
[Source "ChessBase"]
[SourceQuality "1"]
[TimeControl "40/6000+30:3000+30"]

{[%evp 13,63,22,26,29,26,11,8,0,5,0,0,0,8,4,7,7,8,-5,0,-8,-8,-14,-22,-18,-25,-67,-21,-33,-40,-77,31,46,27,36,90,88,102,90,119,113,308,195,529,652,652,591,644,643,651,609,1856,1854]} 1. e4 {[%emt 0:10:05]} c5 {[%emt 0:10:57]} 2. Nf3 {[%emt 0:00:40][%cal Bg1f3,Bf3d4,Bd4b5][%mdl 32]} Nc6 {[%emt 0:00:08]} 3. d4 {[%emt 0:03:01]} cxd4 {[%emt 0:00:11]} 4. Nxd4 {[%emt 0:00:05]} e5 {[%emt 0:00:12]} 5. Nb5 {[%emt 0:00:16]} d6 {[%emt 0:00:24]} 6. N1c3 {[%emt 0:01:02]} a6 {[%emt 0:01:15]} 7. Na3 {[%emt 0:00:06]} Be7 {[%emt 0:03:45] Recently 7...Be6 got a lot of attention.} 8. Nd5 {[%emt 0:03:12] B32: Sicilian: Löwenthal and Kalashnikov Variations.} Nf6 {[%emt 0:04:07]} 9. Be3 {[%emt 0:16:24]} Nxd5 {[%emt 0:26:02]} (9... Nxe4 $2 10. Bb6 Qd7 11. Bd3 $18 (11. Nc7+ Kf8 $18)) 10. exd5 {[%emt 0:00:16] The position is equal.} Nd4 {[%emt 0:00:32]} 11. Bxd4 {[%emt 0:07:17]} exd4 {[%emt 0:00:07]} 12. Qxd4 {[%emt 0:01:30][%cal Of1d3]} O-O $1 {[%emt 0:01:22] [#] Black sacrificed a pawn} 13. O-O-O {[%emt 0:08:39]} Bf6 {[%emt 0:03:04]} 14. Qb4 {[%emt 0:02:13]} b5 {[%emt 0:03:58][%cal Bb7b5,Bb5b4][%mdl 32]} 15. Bd3 {[%emt 0:02:04]} g6 $36 {[%emt 0:15:05][%mdl 2048] Black has good play.} 16. h4 {[%emt 0:08:39]} a5 {[%emt 0:10:44]} 17. Qd2 {[%emt 0:01:38]} (17. Qxb5 Bg4 18. c3 Bxd1 19. Rxd1 Rb8 $17 (19... Bxh4 20. g3 $17)) 17... b4 $1 {[%emt 0:09:53]} 18. Nc4 {[%emt 0:00:15]} Ba6 $1 {[%emt 0:00:50][%cal Oa8c8] A strong pair of Bishops.} 19. Ne3 $146 {[%emt 0:06:33]} (19. g4 Bxc4 20. Bxc4 Qc8 21. Be2 Re8 22. g5 Bc3 23. Qd3 Qc5 24. Bg4 Re7 25. h5 {0-1 Hernandez Pinzon,H (2002)-Castrillon Gomez,M (2196) Medellin Flores op 24th 2017 (2)}) 19... Bxd3 {[%emt 0:04:43]} (19... Bg7 $1 $15 20. Bxa6 Rxa6) 20. Qxd3 {[%emt 0:00:18]} a4 {[%emt 0:00:29][%cal Of6g7]} 21. Nc4 {[%emt 0:05:12]} a3 {[%emt 0:01:38]} (21... Bg7 $17) 22. b3 $14 {[%emt 0:00:18][%cal Bb2b3,Bb3c4][%mdl 32]} Bg7 {[%emt 0:02:00]} 23. Qf3 {[%emt 0:04:36]} Rc8 {[%emt 0:01:50] [#]} ({Black should try} 23... f5 $14) 24. Qf4 $1 $16 {[%emt 0:09:37]} Rxc4 {[%emt 0:02:04]} 25. bxc4 {[%emt 0:00:15]} (25. Qxc4 $6 Qf6 26. Rhf1 (26. Qxb4 $2 Bh6+ 27. f4 Bxf4+ $19) 26... Re8 $11) 25... Qa5 {[%emt 0:06:03][%cal Ob4b3] White must now prevent ...b3!.} 26. Rh3 {[%emt 0:01:38]} (26. Qxd6 $2 b3 27. Rh3 bxa2 28. Qxa3 a1=Q+ $19 (28... a1=R+ $2 29. Qxa1 Qxa1+ 30. Kd2 $19)) 26... Re8 $2 {[%emt 0:01:14] This costs Black the game.} (26... Be5 $16 27. Qe4 Qc5) 27. Qxd6 $18 {[%emt 0:02:51]} Re2 $2 {[%emt 0:00:46]} (27... Bh6+ {is a better chance.} 28. Kb1 b3 29. cxb3 (29. Rxb3 $2 {loses.} Qe1 $19) 29... Re2 30. Qb8+ Bf8) 28. Qb8+ {[%emt 0:04:24] White is clearly winning.} Bf8 {[%emt 0:00:02][%cal Oa5a6]} 29. Re3 {[%emt 0:00:56]} Rxe3 {[%emt 0:01:02]} 30. fxe3 {[%emt 0:00:05]} Qc5 {[%emt 0:00:23]} 31. Qf4 {[%emt 0:01:01] d6 is the strong threat.} Bg7 {[%emt 0:00:37]} 32. d6 {[%emt 0:00:21] Weighted Error Value: White=0.08 (flawless) /Black=0.58  Loses game:     	---       	Black=1      Mistake:       	---       	Black=4      Inaccurate:     	White=2     	Black=1      OK:         	White=6     	Black=8      Best:        	White=2     	Black=1      Strong:       	White=1     	Black=3} 1-0

[Event "4NCL Div 2 2024-25"]
[Site "England"]
[Date "2025.01.25"]
[Round "3.3"]
[White "Talsma, Paul"]
[Black "Pozimski, Szymon"]
[Result "0-1"]
[Annotator "TA"]
[ECO "D27"]
[WhiteElo "2083"]
[BlackElo "2003"]
[PlyCount "113"]
[EventDate "2024.11.23"]
[EventType "team-tourn"]
[EventCountry "ENG"]
[SourceTitle "playchess.com"]
[Source "ChessBase"]
[SourceQuality "1"]
[TimeControl "40/6000+30:3000+30"]

{[%evp 16,113,17,15,39,34,78,29,74,72,65,72,83,76,86,82,73,72,73,66,131,108,116,116,101,111,111,99,108,24,25,29,31,-17,-13,-9,-4,-7,-6,-4,-10,-2,-10,-12,0,-4,18,-15,-8,-23,-18,-20,-8,-17,-8,-14,-8,-8,-8,-8,0,0,26,8,11,0,0,0,0,-8,-8,-8,-8,-8,-8,-8,-8,-8,0,-8,-8,-8,-8,-118,-118,-118,-118,-118,-118,-29987,-29988,-29988,-29989,-29989,-29990,-29990,-29991,-29992,-29993,-29993]} 1. d4 {[%emt 0:10:04]} d5 {[%emt 0:16:22]} 2. c4 {[%emt 0:00:12]} dxc4 {[%emt 0:00:02]} 3. e3 {[%emt 0:00:14]} c5 {[%emt 0:00:03]} 4. Bxc4 {[%emt 0:00:29]} e6 {[%emt 0:01:07]} 5. Nf3 {[%emt 0:00:42]} Nf6 {[%emt 0:00:07]} 6. O-O {[%emt 0:01:01]} a6 {[%emt 0:00:11]} 7. dxc5 {[%emt 0:02:00]} Qxd1 {[%emt 0:00:53]} 8. Rxd1 {[%emt 0:00:08]} Bxc5 {[%emt 0:00:04]} 9. Be2 {[%emt 0:02:14]} Nc6 {[%emt 0:05:46] D27: Queen's Gambit Accepted: Classical main line: 7 e4!? and 7 a4.} 10. Nbd2 {[%emt 0:02:24]} Ke7 {[%emt 0:05:43]} 11. b3 {[%emt 0:11:09]} (11. Ne1 $16) 11... b5 {[%emt 0:30:09] White has an edge.} 12. Bb2 {[%emt 0:03:00]} Bb7 {[%emt 0:05:02]} 13. Rac1 {[%emt 0:04:19] White plays on the queen side and is better} Bd6 {[%emt 0:01:17]} 14. a4 $146 {[%emt 0:02:37]} (14. Ng5 Nb4 15. a3 Nbd5 16. Bf3 Nd7 17. e4 Nf4 18. e5 Bxe5 19. Bxe5 Bxf3 20. Ndxf3 {0-1 Wang,A (2384)-Cervantes Landeiro,T (2311) Wch FIDE Online U18 Girls rapid 2020 (3.2)}) 14... bxa4 {[%emt 0:06:10]} 15. Nc4 {[%emt 0:06:38]} Bb4 {[%emt 0:00:51]} 16. bxa4 {[%emt 0:00:40]} Rhd8 {[%emt 0:02:23]} 17. Nd4 {[%emt 0:17:44][%cal Bf3d4,Bd4b3,Bb3c5][%mdl 32]} Na5 {[%emt 0:14:55]} (17... Rab8 $14) 18. Nxa5 {[%emt 0:09:57]} Bxa5 {[%emt 0:00:06][%cal Bb4a5,Ba5d8,Bd8e7,Be7a3,Ba3d6,Bd6e5][%mdl 32]} 19. Nb3 {[%emt 0:12:03]} Rxd1+ {[%emt 0:01:44]} 20. Bxd1 {[%emt 0:00:08]} Bd8 {[%emt 0:01:20]} 21. Nc5 {[%emt 0:01:58]} Bd5 {[%emt 0:04:42] [#]} 22. Ba3 {[%emt 0:00:47]} (22. Be2 $1 $16) 22... Ke8 $11 {[%emt 0:00:11]} 23. Be2 {[%emt 0:01:58]} Be7 {[%emt 0:03:45]} 24. Bxa6 {[%emt 0:12:16]} (24. Bb2 $14 {deserves consideration.} Bxc5 25. Rxc5) 24... Rxa6 {[%emt 0:00:44]} 25. Nxa6 {[%emt 0:00:08]} Bxa3 {[%emt 0:00:03] This pair of bishops is nice.} 26. Rc3 {[%emt 0:00:16]} Bd6 {[%emt 0:00:43]} 27. Nc7+ {[%emt 0:00:17]} Kd7 {[%emt 0:00:56]} 28. Nxd5 {[%emt 0:00:09]} Nxd5 {[%emt 0:00:55]} 29. Rc1 {[%emt 0:01:07]} Be5 {[%emt 0:02:18]} 30. Kf1 {[%emt 0:01:01]} Nc3 {[%emt 0:00:13]} 31. Ra1 {[%emt 0:02:41][%mdl 1024] White has compensation.} Kc7 {[%emt 0:03:36]} (31... Bxh2 $2 32. g3 $18) 32. f4 {[%emt 0:00:44]} Bd6 {[%emt 0:01:22]} 33. Kf2 {[%emt 0:02:41]} Kb6 {[%emt 0:00:11]} 34. Kf3 {[%emt 0:00:19]} Ka5 {[%emt 0:00:30]} 35. e4 {[%emt 0:00:20]} Bc5 {[%emt 0:02:04]} (35... Nxa4 $2 36. Rd1 Bb4 37. Rd7 $18) 36. g4 {[%emt 0:00:42]} f6 {[%emt 0:00:15]} 37. h4 {[%emt 0:00:30]} Bd4 {[%emt 0:00:14]} 38. g5 {[%emt 0:02:11]} Nxa4 {[%emt 0:00:12]} 39. gxf6 {[%emt 0:01:07]} gxf6 {[%emt 0:00:33]} (39... Bxa1 $2 40. f7 $18) 40. Ra2 {[%emt 0:00:51]} Bb2 {[%emt 0:02:06]} 41. Kg4 {[%emt 0:21:22]} Kb4 {[%emt 0:22:34]} 42. Kh5 {[%emt 0:21:23]} Kb3 {[%emt 0:00:36]} 43. Rxa4 {[%emt 0:01:15]} Kxa4 {[%emt 0:03:00][%mdl 4096] Endgame KB-K3P} 44. Kh6 {[%emt 0:00:06]} Bc1 {[%emt 0:01:11] ( -> ...e5)} 45. Kxh7 {[%emt 0:00:05]} Bxf4 {[%emt 0:00:04] ( -> ...Kb3). KB-KPP} 46. Kg6 {[%emt 0:00:11]} f5 {[%emt 0:06:27]} 47. exf5 {[%emt 0:00:19]} e5 {[%emt 0:09:21] And now ...e4 would win.} (47... exf5 {simplifies} 48. Kxf5 Bh6 49. Ke6 Kb4) 48. f6 {[%emt 0:07:43] Intending f7 and mate.} e4 $1 {[%emt 0:00:03]} 49. f7 {[%emt 0:00:06]} (49. h5 $1 $11 {was the only way to keep the balance.} e3 50. h6 (50. f7 Bd6 $17)) 49... Bd6 $17 {[%emt 0:00:04] ( -> ...e3)} 50. h5 {[%emt 0:00:05]} e3 {[%emt 0:01:00] ( -> ...e2)} 51. h6 {[%emt 0:00:05] Threatens to win with h7.} e2 {[%emt 0:00:03]} 52. h7 $2 {[%emt 0:00:05][%mdl 8192] Loses the game.} (52. f8=Q $17 Bxf8 53. h7) 52... e1=Q {[%emt 0:00:12] Black mates.} (52... e1=R $2 {perishes.} 53. h8=Q (53. h8=R Rg1+ 54. Kf5 Rf1+ 55. Kg6 Rxf7 $11) 53... Rg1+ 54. Kf5 $18) 53. h8=Q {[%emt 0:00:06] [#]} Qe4+ $1 {[%emt 0:01:28]} 54. Kg5 {[%emt 0:03:26]} Bf4+ {[%emt 0:00:45]} 55. Kg4 {[%emt 0:01:09]} Be5+ {[%emt 0:00:08]} 56. Kg5 {[%emt 0:00:09]} Qf4+ {[%emt 0:00:17]} 57. Kh5 {[%emt 0:01:39] Weighted Error Value: White=0.19 (very precise) /Black=0.08 (flawless)   Loses game:     	White=1     	---        Mistake:       	White=4     	Black=1      Inaccurate:     	White=1     	Black=3      OK:         	White=22    	Black=13     Best:        	White=4     	Black=8      Strong:       	---       	Black=1} 0-1

[Event "4NCL Div 2 2024-25"]
[Site "England"]
[Date "2025.01.25"]
[Round "3.4"]
[White "Manley, Jon P"]
[Black "Patel, Keatan"]
[Result "1/2-1/2"]
[Annotator "TA"]
[ECO "C48"]
[WhiteElo "2072"]
[BlackElo "1973"]
[PlyCount "66"]
[EventDate "2024.11.23"]
[EventType "team-tourn"]
[EventCountry "ENG"]
[SourceTitle "playchess.com"]
[Source "ChessBase"]
[SourceQuality "1"]
[TimeControl "40/6000+30:3000+30"]

{[%evp 14,66,-6,0,-13,-12,-14,-10,-12,-13,-14,0,0,-9,1,-4,0,0,0,0,0,0,0,0,8,-68,-79,-75,-75,-144,-106,-122,-72,-72,0,-8,106,137,97,-111,0,-124,-42,-56,0,0,0,-54,12,15,13,20,7,8,13]} 1. e4 {[%emt 0:10:05]} e5 {[%emt 0:10:15]} 2. Nf3 {[%emt 0:00:29]} Nc6 {[%emt 0:00:10]} 3. Nc3 {[%emt 0:00:51]} Nf6 {[%emt 0:00:08]} 4. Bb5 {[%emt 0:01:11]} Bc5 {[%emt 0:00:14]} 5. O-O {[%emt 0:02:01]} O-O {[%emt 0:00:25]} 6. Nxe5 {[%emt 0:02:38]} Nxe5 {[%emt 0:00:13]} 7. d4 {[%emt 0:00:06]} Bd6 {[%emt 0:00:08]} 8. f4 {[%emt 0:00:45]} Neg4 {[%emt 0:00:09]} 9. e5 {[%emt 0:05:22]} Bb4 {[%emt 0:00:15][%cal Od7d5]} 10. h3 {[%emt 0:14:23] [#]} d6 $1 {[%emt 0:10:55]} 11. exf6 {[%emt 0:05:14]} Nxf6 {[%emt 0:00:20]} 12. f5 {[%emt 0:04:19]} d5 {[%emt 0:20:07]} 13. Bg5 {[%emt 0:11:58]} c6 {[%emt 0:00:24][%cal Ob4c3] aiming for ...Bxc3!} 14. Bd3 {[%emt 0:01:04]} h6 $36 {[%emt 0:13:52][%mdl 2048] Black has good play.} 15. Bh4 {[%emt 0:01:54]} Be7 {[%emt 0:03:34]} 16. Re1 {[%emt 0:15:01]} Re8 {[%emt 0:01:22]} 17. Qf3 {[%emt 0:05:12]} Bd7 {[%emt 0:10:25]} 18. a3 {[%emt 0:02:39]} Qb6 {[%emt 0:03:16]} 19. Kh1 {[%emt 0:03:09]} ({White should try} 19. Rab1 $11) 19... Qxb2 $15 {[%emt 0:06:11]} (19... Qxd4 $2 {perishes.} 20. Bf2 $18) 20. Ne2 {[%emt 0:00:45] Reb1 would now be deadly.} Qb6 {[%emt 0:00:53]} (20... Bxa3 $2 {loses.} 21. Bxf6 (21. Reb1 Qxa1 22. Rxa1 Be7 $18) 21... Rxe2 22. Bxe2 $18) 21. Bg3 {[%emt 0:05:07]} (21. Rab1 $142 Qc7 22. Nf4) 21... Qd8 {[%emt 0:03:31]} 22. Be5 {[%emt 0:01:56]} Nh7 {[%emt 0:03:02]} (22... c5 $142 {Threatens to win with ...c4.} 23. c3 Ne4) 23. Qg3 {[%emt 0:01:26]} Bf6 {[%emt 0:00:44]} (23... Bf8 $17) 24. Nf4 $11 {[%emt 0:02:07]} Bxe5 {[%emt 0:00:34]} (24... b5 $11) 25. dxe5 $16 {[%emt 0:00:29]} Qg5 {[%emt 0:00:23] [#]} 26. Qxg5 {[%emt 0:02:03]} (26. Qf2 $1 $16) 26... Nxg5 {[%emt 0:00:05]} (26... hxg5 $17 27. Nh5 Rab8) 27. f6 {[%emt 0:04:34]} (27. Rad1 $11) 27... gxf6 {[%emt 0:02:47]} (27... Ne6 $17 28. g3 Rad8) 28. Nh5 $15 {[%emt 0:00:19]} Re7 {[%emt 0:01:48]} (28... fxe5 $15 29. Nf6+ Kg7 30. Nxd7 e4) 29. Nxf6+ $11 {[%emt 0:00:51]} Kg7 {[%emt 0:00:57]} 30. h4 {[%emt 0:02:30] [#]} (30. Re3 $11) 30... Ne4 $1 {[%emt 0:02:47]} 31. Bxe4 {[%emt 0:02:23] The position is equal.} dxe4 {[%emt 0:00:14]} 32. Rxe4 {[%emt 0:00:58]} Bf5 {[%emt 0:00:53]} 33. Re2 {[%emt 0:00:10]} Rd8 {[%emt 0:03:30] Weighted Error Value: White=0.28 (precise) /Black=0.31.  Mistake:       	White=5     	Black=7      OK:         	White=12    	Black=5      Best:        	White=3     	Black=1} 1/2-1/2

[Event "4NCL Div 2 2024-25"]
[Site "England"]
[Date "2025.01.25"]
[Round "3.5"]
[White "Paterson, Andrew I"]
[Black "Murawski, Jan"]
[Result "0-1"]
[Annotator "TA"]
[ECO "A13"]
[WhiteElo "1976"]
[BlackElo "2065"]
[PlyCount "66"]
[EventDate "2024.11.23"]
[EventType "team-tourn"]
[EventCountry "ENG"]
[SourceTitle "playchess.com"]
[Source "ChessBase"]
[SourceQuality "1"]
[TimeControl "40/6000+30:3000+30"]

{[%evp 19,66,0,0,-25,-19,-51,-20,-58,-67,-214,-209,-201,-204,-217,-195,-210,-219,-216,-268,-438,-434,-516,-498,-525,-518,-592,-540,-510,-512,-560,-477,-496,-462,-574,-463,-601,-589,-574,-582,-580,-596,-570,-595,-577,-583,-1027,-1047,-1039,-1045]} 1. c4 {[%emt 0:10:03]} e6 {[%emt 0:10:02]} 2. g3 {[%emt 0:00:16]} Nf6 {[%emt 0:00:09]} 3. Bg2 {[%emt 0:00:08]} d5 {[%emt 0:00:03]} 4. Nf3 {[%emt 0:00:20]} dxc4 {[%emt 0:00:10]} 5. O-O {[%emt 0:00:24]} Nbd7 {[%emt 0:03:27]} 6. Qa4 {[%emt 0:02:21]} a6 {[%emt 0:01:33]} 7. Qxc4 {[%emt 0:00:34]} b5 {[%emt 0:01:28]} 8. Qc2 {[%emt 0:00:59]} Bb7 {[%emt 0:00:24]} 9. d3 {[%emt 0:03:58]} c5 {[%emt 0:10:12]} 10. a4 {[%emt 0:02:36]} Be7 {[%emt 0:01:51]} 11. Na3 {[%emt 0:19:37] A13: English Opening: 1...e6.} O-O {[%emt 0:05:48]} 12. Bd2 {[%emt 0:00:06]} Bc6 {[%emt 0:03:13]} 13. b4 $146 {[%emt 0:18:42] The position is equal.} (13. Rfc1 Qb6 14. Be3 Nd5 15. Bg5 Bxg5 16. Nxg5 Nb4 17. Qd2 Bxg2 18. Kxg2 Rac8 19. axb5 axb5 {½-½ Jones,G (2618)-Bachmann,A (2604) Titled Tuesday intern op 18th Jul Early blitz 2023 (10)}) 13... Rc8 {[%emt 0:04:23]} 14. axb5 {[%emt 0:06:07] [#]} ({Better is} 14. bxc5 $15 Bxc5 (14... bxa4 15. d4 $16) 15. Qb1) 14... Bxf3 $1 $19 {[%emt 0:02:16]} 15. Bxf3 {[%emt 0:00:36]} cxb4 {[%emt 0:00:16]} 16. Qa4 {[%emt 0:10:18]} bxa3 {[%emt 0:02:35]} 17. bxa6 {[%emt 0:01:12]} Nd5 {[%emt 0:04:46][%cal Bf6d5,Bd5c3,Bc3e2][%mdl 32]} 18. Ba5 {[%emt 0:01:40]} Qe8 {[%emt 0:08:31] [#] and ...Ne5 would now be decisive} 19. e4 $2 {[%emt 0:04:00]} (19. Bxd5 {was necessary.} exd5 20. Bb4) 19... Ne5 {[%emt 0:05:50] Black is clearly winning.} 20. Bd1 {[%emt 0:01:14]} Qxa4 {[%emt 0:01:51]} 21. Bxa4 {[%emt 0:00:15] A strong pair of Bishops.} Nc3 {[%emt 0:00:39]} 22. Bb3 {[%emt 0:04:40]} Ne2+ {[%emt 0:00:31]} 23. Kg2 {[%emt 0:00:36]} Nd4 {[%emt 0:00:26]} 24. Bd1 {[%emt 0:00:48]} Ra8 {[%emt 0:00:25]} 25. Bb6 {[%emt 0:00:15]} Ndc6 {[%emt 0:01:27]} 26. d4 {[%emt 0:04:24]} Nd7 {[%emt 0:02:31]} 27. Bc7 {[%emt 0:03:41]} Rxa6 {[%emt 0:01:38]} 28. d5 {[%emt 0:00:13]} exd5 {[%emt 0:01:03]} 29. exd5 {[%emt 0:00:06]} Nb4 {[%emt 0:00:26]} 30. Be2 {[%emt 0:00:42]} Ra7 {[%emt 0:00:44]} 31. d6 {[%emt 0:03:13]} Bf6 {[%emt 0:00:18]} 32. Bb5 {[%emt 0:02:02]} Bxa1 {[%emt 0:00:35]} 33. Rxa1 {[%emt 0:00:11]} Nf6 {[%emt 0:00:00] White did not feel at home in the position after the opening.   Weighted Error Value: White=0.59/Black=0.19 (very precise)   Mistake:       	White=2     	---        Inaccurate:     	White=3     	Black=1      OK:         	White=7     	Black=11     Best:        	---       	Black=2      Strong:       	---       	Black=1} 0-1